fUST/lending_fUST_20251217
["ID","MTS","AMOUNT","RATE_DAILY","PERIOD"]
[398903515,1765984244481,-153.0,0.0003141,30]
[398903517,1765984244493,-302.4071107,0.0003141,30]
[398903519,1765984244503,-153.0,0.0003141,30]
[398903521,1765984244512,-524.10727237,0.00031816,2]
[398903523,1765984244522,-302.4071107,0.00032232,30]
[398903525,1765984244531,-153.0,0.00032232,30]
[398903527,1765984244541,-153.0,0.00032232,30]
[398903529,1765984244550,-278.3774756,0.00032232,30]
[398903531,1765984244559,-153.0,0.00032232,30]
[398903533,1765984244568,-153.0,0.00032232,30]
[398903535,1765984244578,-165.593725,0.00032232,30]
[398903537,1765984244587,-165.593725,0.00032232,30]
[398903539,1765984244597,-153.0,0.00032232,30]
[398903541,1765984244606,-165.593725,0.00032232,30]
[398903543,1765984244615,-165.593725,0.00032232,30]
[398903545,1765984244624,-264.475856,0.00032232,30]
[398903547,1765984244634,-183.5628943,0.00032234,30]
[398903549,1765984244643,-183.5628943,0.00032234,30]
[398903551,1765984244652,-183.5628943,0.00032234,30]
[398903553,1765984244661,-183.5628943,0.00032234,30]
[398903555,1765984244670,-183.5628943,0.00032234,30]
[398903557,1765984244679,-183.5628943,0.00032234,30]
[398903559,1765984244689,-57843.08686442,0.00033,2]
[398903561,1765984244698,-4277.0,0.00033,2]
[398903563,1765984244707,-183.5628943,0.00033056,30]
[398903565,1765984244716,-183.5628943,0.00033056,30]
[398903567,1765984244726,-383.99362177,0.000332,117]
[398903569,1765984244737,-383.99362175,0.000332,117]
[398903571,1765984244750,-302.4071107,0.00033877,30]
[398903573,1765984244759,-597.8937512,0.00033877,30]
[398903575,1765984244768,-302.4071107,0.00033877,30]
[398903577,1765984244777,-597.8937512,0.00033877,30]
[398903579,1765984244787,-302.4071107,0.00033877,30]
[398903581,1765984244796,-597.8937512,0.00033877,30]
[398903583,1765984244805,-331.0556126,0.00033877,30]
[398903585,1765984244813,-597.8937512,0.00033877,30]
[398903587,1765984244824,-302.4071107,0.00033877,30]
[398903589,1765984244833,-302.4071107,0.00033877,30]
[398903591,1765984244841,-597.8937512,0.00033877,30]
[398903593,1765984244850,-703.0440604,0.00033877,30]
[398903595,1765984244859,-596.1769256,0.00033877,30]
[398903597,1765984244868,-1031.60666254,0.00034,2]
[398903599,1765984244877,-415.0,0.0003432,2]
[398903601,1765984244886,-10745.03774902,0.00035,2]
[398903603,1765984244895,-659.5112365,0.00035,2]
[398903605,1765984244904,-421.39891941,0.00035,15]
[398903607,1765984244913,-198.52,0.0003509,60]
[398903609,1765984244922,-10495.46,0.000351,2]
[398903611,1765984244931,-198.52,0.0003519,60]
[398903613,1765984244940,-198.52101577,0.0003529,60]
[398903615,1765984244950,-200.0,0.0003544,41]
[398903617,1765984244959,-212.0,0.000359,55]
[398903619,1765984244968,-154.2959275,0.00036068,30]
[398903621,1765984244977,-153.0,0.00036068,30]
[398903623,1765984244988,-153.0,0.00036068,30]
[398903625,1765984244998,-204.70280775,0.0003621,2]
[398903627,1765984245007,-266.24499033,0.0003624,2]
[398903629,1765984245016,-6119.69,0.000364,14]
[398903631,1765984245025,-153.0,0.00036616,30]
[398903633,1765984245035,-153.0,0.00036616,30]
[398903635,1765984245044,-306.0,0.00036618,30]
[398903637,1765984245054,-3783.93078712,0.0003686,2]
[398903639,1765984245063,-594.36991236,0.00036891,9]
[398903641,1765984245071,-2040.90233491,0.00037,2]
[398903643,1765984245081,-156.39613505,0.00037,120]
[398903645,1765984245090,-360.6,0.00037085,7]
[398903647,1765984245099,-415.0,0.0003732,2]
[398903649,1765984245108,-17768.0,0.000375,120]
[398903651,1765984245117,-1020.35878263,0.000378,2]
[398903653,1765984245126,-200.0,0.0003785,47]
[398903655,1765984245135,-7291.09016991,0.00037891,2]
[398903657,1765984245145,-10000.0,0.00037991,30]
[398903659,1765984245154,-369.8872164,0.00037991,30]
[398903661,1765984245163,-92114.56898121,0.00037991,2]
[398903663,1765984245172,-300.0,0.00037991,2]
[398903665,1765984245183,-22870.12729106,0.00037991,2]
[398903667,1765984245192,-3919.28408269,0.00037991,2]
[398903669,1765984245201,-817.23375247,0.00037991,2]
[398903671,1765984245211,-346.69773513,0.00037991,2]
[398903683,1765984245312,-260.57444222,0.00037991,2]
[398903685,1765984245322,-329.96266131,0.00037991,2]
[398903687,1765984245331,-11316.83255952,0.00037991,2]
[398903689,1765984245339,-294.48379636,0.00037991,2]
[398903691,1765984245348,-52192.15470193,0.00037991,2]
[398903692,1765984245357,-643.01018063,0.00037991,2]
[398903694,1765984245366,-1374.16937841,0.00037991,2]
[398903696,1765984245375,-158.03541442,0.00037991,2]
[398903698,1765984245384,-2932.93570293,0.00037991,2]
[398903700,1765984245394,-708.91056946,0.00037991,2]
[398903702,1765984245403,-21769.71975134,0.00037991,2]
[398903704,1765984245412,-6356.55860868,0.00037991,2]
[398903706,1765984245421,-159.04375845,0.00037991,2]
[398903708,1765984245430,-2183.96749167,0.00037991,2]
[398903710,1765984245439,-1732.76898777,0.00037991,2]
[398903712,1765984245448,-7550.93171797,0.00037991,2]
[398903714,1765984245457,-2095.18657457,0.00037991,2]
[398903716,1765984245466,-512.08810816,0.00037991,2]
[398903718,1765984245475,-185.5079459,0.00037991,2]
[398903720,1765984245484,-472.00409103,0.00037991,2]
[398903722,1765984245493,-30722.76596986,0.00037991,2]
[398903724,1765984245502,-190.81379678,0.00037991,2]
[398903726,1765984245511,-1205.53314805,0.00037991,2]
[398903728,1765984245520,-1409.09302596,0.00037991,2]
[398903730,1765984245529,-5949.66661646,0.00037991,2]
[398903731,1765984245538,-10778.85292498,0.00037991,2]
[398903732,1765984245549,-656.86197427,0.00037991,2]
[398903733,1765984245558,-204.73525323,0.00037991,2]
[398903734,1765984245567,-2920.0,0.00037991,2]
[398903735,1765984245577,-199.87787196,0.00037991,2]
[398903736,1765984245586,-388.19516858,0.00037991,2]
[398903737,1765984245596,-203.0979547,0.00037991,2]
[398903738,1765984245606,-3175.62078313,0.00037991,2]
[398903739,1765984245615,-168.01918474,0.00037991,2]
[398903740,1765984245624,-178732.47188041,0.00037991,2]
[398903741,1765984245634,-151.64900891,0.00037991,2]
[398903742,1765984245643,-260.78634227,0.00037991,2]
[398903743,1765984245653,-3800.29177727,0.00037991,2]
[398903744,1765984245662,-674.88050788,0.00037991,2]
[398903745,1765984245672,-150.5317438,0.00037991,2]
[398903746,1765984245681,-618.0,0.00037991,2]
[398903747,1765984245690,-1674.9124304,0.00037991,2]
[398903748,1765984245699,-326.48414247,0.00037991,2]
[398903749,1765984245708,-234.14485683,0.00037991,2]
[398903750,1765984245717,-328.29989666,0.00037991,2]
[398903751,1765984245726,-240000.0,0.00037991,2]
[398903752,1765984245736,-902.41485157,0.00037991,120]
[398903753,1765984245746,-57199.71187643,0.00037991,2]
[398903754,1765984245757,-150.0,0.00037991,2]
[398903755,1765984245767,-100000.00025108,0.00037991,30]
[398903756,1765984245776,-321612.29049313,0.00037991,20]
[398903757,1765984245785,-2039.0,0.00037991,30]
[398903758,1765984245795,-341.83364322,0.00037991,10]
[398903760,1765984245804,-1989.4554059,0.00037991,14]
[398903761,1765984245813,-1000.0,0.00037991,30]
[398903763,1765984245822,-500.0,0.00037991,120]
[398903765,1765984245831,-105297.0,0.00037991,120]
[398903767,1765984245843,-2678.7639314,0.00038277,2]
[398903769,1765984245852,-151.0,0.00038356,120]
[398903771,1765984245861,-151.0,0.00038356,120]
[398903773,1765984245870,-151.0,0.00038356,120]
[398903775,1765984245879,-151.0,0.00038356,120]
[398903777,1765984245887,-151.0,0.00038356,120]
[398903779,1765984245896,-151.0,0.00038356,120]
[398903781,1765984245905,-151.0,0.00038356,120]
[398903782,1765984245915,-151.0,0.00038356,120]
[398903784,1765984245924,-151.0,0.00038356,120]
[398903786,1765984245932,-151.0,0.00038356,120]
[398903788,1765984245941,-151.0,0.00038356,120]
[398903790,1765984245950,-151.0,0.00038356,120]
[398903792,1765984245960,-151.0,0.00038356,120]
[398903794,1765984245969,-151.0,0.00038356,120]
[398903796,1765984245978,-151.0,0.00038356,120]
[398903798,1765984245988,-151.0,0.00038356,120]
[398903800,1765984245997,-151.0,0.00038356,120]
[398903803,1765984246006,-151.0,0.00038356,120]
[398903805,1765984246015,-297.748689,0.00038356,120]
[398903808,1765984246025,-172.29,0.00038654,120]
[398903811,1765984246034,-1367.0,0.00038991,120]
[398903813,1765984246043,-383.99362175,0.00039,120]
[398903815,1765984246052,-10495.46,0.00039,2]
[398903817,1765984246061,-181.74,0.00039041,120]
[398903819,1765984246070,-685.28758457,0.0004,120]
[398903821,1765984246079,-500.0,0.0004,2]
[398903823,1765984246088,-399.67436404,0.0004,120]
[398903825,1765984246097,-153.99829351,0.0004,120]
[398903827,1765984246107,-277.06035204,0.0004,10]
[398903829,1765984246117,-233.11025638,0.0004,100]
[398903831,1765984246126,-243.47182869,0.0004,120]
[398903833,1765984246135,-500.0,0.0004,120]
[398903835,1765984246144,-163.79212664,0.0004,15]
[398903837,1765984246153,-2000.0,0.0004,120]
[398903839,1765984246162,-151.37,0.00040081,120]
[398903841,1765984246171,-151.37,0.00040181,120]
[398903843,1765984246180,-151.0,0.000402,120]
[398903845,1765984246189,-200.0,0.0004026,54]
[398903847,1765984246198,-151.37,0.00040281,120]
[398903849,1765984246206,-151.37,0.00040381,120]
[398903850,1765984246215,-151.37,0.00040481,120]
[398903852,1765984246224,-151.37,0.00040581,120]
[398903854,1765984246233,-6119.69,0.000406,14]
[398903857,1765984246243,-151.37,0.00040681,120]
[398903858,1765984246252,-151.37,0.00040781,120]
[398903860,1765984246262,-151.37,0.00040881,120]
[398903862,1765984246271,-151.0,0.000409,120]
[398903864,1765984246281,-1310.0,0.00040956,20]
[398903866,1765984246290,-150.0,0.00040956,2]
[398903868,1765984246299,-151.37,0.00040981,120]
[398903870,1765984246308,-503.0,0.00040991,120]
[398903873,1765984246318,-30000.0,0.00041,30]
[398903876,1765984246327,-1000.0,0.00041,120]
[398903878,1765984246336,-301.9559605,0.00041076,30]
[398903880,1765984246345,-302.4071107,0.00041076,30]
[398903882,1765984246354,-151.37,0.00041081,120]
[398903884,1765984246364,-959.93,0.00041095,30]
[398903886,1765984246374,-453.24,0.00041096,120]
[398903888,1765984246383,-151.37,0.00041181,120]
[398903890,1765984246392,-151.37,0.00041281,120]
[398903892,1765984246402,-151.37,0.00041381,120]
[398903894,1765984246411,-151.37,0.00041481,120]
[398903896,1765984246420,-10495.46,0.000415,2]
[398903898,1765984246430,-151.37,0.00041581,120]
[398903900,1765984246439,-151.0,0.000416,120]
[398903902,1765984246448,-959.93,0.00041643,35]
[398903904,1765984246457,-151.37,0.00041681,120]
[398903906,1765984246466,-151.37,0.00041781,120]
[398903908,1765984246475,-524.10727237,0.00041832,7]
[398903910,1765984246486,-151.37,0.00041881,120]
[398903912,1765984246496,-151.37,0.00041981,120]
[398903914,1765984246505,-504.0,0.00041991,120]
[398903916,1765984246514,-500.0,0.00042,120]
[398903918,1765984246523,-151.37,0.00042081,120]
[398903920,1765984246532,-2000.89369028,0.000421,2]
[398903922,1765984246541,-151.37,0.00042181,120]
[398903923,1765984246550,-959.93,0.00042191,40]
[398903926,1765984246560,-177.64021354,0.000422,120]
[398903928,1765984246572,-168.94036194,0.000422,120]
[398903930,1765984246584,-203.98437161,0.000422,120]
[398903932,1765984246595,-176.38130533,0.000422,120]
[398903934,1765984246607,-151.0,0.000422,120]
[398903937,1765984246618,-217.3810724,0.000422,120]
[398903939,1765984246629,-151.37,0.00042281,120]
[398903941,1765984246640,-151.54210834,0.00042381,120]
[398903943,1765984246650,-578.477941,0.00042466,120]
[398903945,1765984246659,-578.477941,0.00042466,120]
[398903947,1765984246671,-578.477941,0.00042466,120]
[398903949,1765984246682,-578.477941,0.00042466,120]
[398903952,1765984246694,-578.477941,0.00042466,120]
[398903954,1765984246704,-578.477941,0.00042466,120]
[398903956,1765984246715,-578.477941,0.00042466,120]
[398903958,1765984246726,-578.477941,0.00042466,120]
[398903960,1765984246737,-578.477941,0.00042466,120]
[398903962,1765984246749,-578.477941,0.00042466,120]
[398903965,1765984246764,-578.477941,0.00042466,120]
[398903967,1765984246775,-578.477941,0.00042466,120]
[398903969,1765984246786,-578.477941,0.00042466,120]
[398903971,1765984246797,-578.477941,0.00042466,120]
[398903973,1765984246810,-578.477941,0.00042466,120]
[398903975,1765984246821,-578.477941,0.00042466,120]
[398903977,1765984246833,-578.477941,0.00042466,120]
[398903980,1765984246844,-578.477941,0.00042466,120]
[398903982,1765984246855,-578.477941,0.00042466,120]
[398903984,1765984246867,-578.477937,0.00042466,120]
[398903986,1765984246878,-200.0,0.0004267,61]
[398903988,1765984246889,-1193.07582393,0.000427,120]
[398903990,1765984246899,-959.93,0.00042739,45]
[398903992,1765984246909,-6119.69,0.000428,14]
[398903995,1765984246920,-151.0,0.000429,120]
[398903997,1765984246931,-16627.39771776,0.000429,120]
[398904000,1765984246960,-875.4,0.0002729,10]
[398904003,1765984246970,-2668.43879063,0.000429,120]
[398906685,1765984933900,150.0,9.776e-05,2]
[398906686,1765984951224,248.81,0.0001,2]
[398906687,1765985002472,150.0,9.789e-05,2]
[398906688,1765985072148,150.0,9.163e-05,2]
[398906689,1765985072561,150.0,9.996e-05,2]
[398906690,1765985144267,150.0,9.239e-05,2]
[398906691,1765985219479,150.0,9.373e-05,2]
[398906692,1765985293245,150.0,8.277e-05,2]
[398906693,1765985293661,150.0,9.029e-05,2]
[398906694,1765985294082,150.0,9.782e-05,2]
[398906695,1765985380359,150.0,8.117e-05,2]
[398906696,1765985380776,150.0,8.854e-05,2]
[398906697,1765985381196,150.0,9.592e-05,2]
[398906698,1765985412966,-150.0,0.0001033,2]
[398906699,1765985412988,-424.00373965,0.0001033,2]
[398906749,1765985432934,-140.99626035,0.0001033,2]
[398906751,1765985432944,-170.86,0.00011068,2]
[398906753,1765985432955,-205.03,0.00011806,2]
[398906755,1765985432966,-150.0,0.00012109,2]
[398906756,1765985432975,-239.2,0.00012544,2]
[398906757,1765985432986,-273.37,0.00013282,2]
[398906758,1765985432996,-655.730237,0.00013699,2]
[398906759,1765985433007,-364.81350265,0.00013699,2]
[398906760,1765985433019,-135.18649735,0.00013699,2]
[398906761,1765985433029,-142.55329353,0.00014019,2]
[398906762,1765985433041,-164.99670647,0.00014019,2]
[398906764,1765985433052,-177.0,0.00014109,2]
[398906766,1765985433062,-341.72,0.00014757,2]
[398906768,1765985433072,-204.0,0.00016109,2]
[398906770,1765985433082,-231.0,0.00018109,2]
[398906772,1765985433093,-719.03629837,0.00018307,2]
[398906774,1765985433105,-280.96370163,0.00018307,2]
[398906776,1765985433116,-208.03629837,0.00020187,2]
[398906779,1765985433129,-447.69393863,0.00020187,2]
[398906780,1765985433141,-186.138,0.00022084,7]
[398906782,1765985433152,-57.44806137,0.00024613,30]
[398906882,1765985440904,-417.55193863,0.00024613,30]
[398906884,1765985440914,-335.28973982,0.00025532,2]
[398906886,1765985440923,-1085.0,0.00026675,2]
[398906888,1765985440932,-655.730237,0.00026676,2]
[398906890,1765985440941,-300.0,0.00026847,2]
[398906892,1765985440950,-300.0,0.00026847,2]
[398906894,1765985440961,-2000.0,0.00027399,11]
[398906896,1765985440970,-383.18827408,0.00027473,2]
[398906898,1765985440980,-2000.0,0.00030094,3]
[398906900,1765985440989,-106.31738366,0.00031036,15]
[398906927,1765985441388,-3e-08,0.00031036,15]
[398906929,1765985441399,-827.0833948,0.00031036,15]
[398907036,1765985443812,-371.748,0.00031036,15]
[398907038,1765985443824,-694.85122151,0.00031036,15]
[398907039,1765985443833,-151.0,0.00032016,4]
[398907040,1765985443842,-655.730237,0.00033165,2]
[398907041,1765985443851,-365.46530646,0.00033198,7]
[398907042,1765985443861,-500.0,0.00033198,7]
[398907044,1765985443870,-500.0,0.00033198,7]
[398907045,1765985443879,-500.0,0.00033198,7]
[398907047,1765985443888,-362.35635566,0.00033198,7]
[398907049,1765985443897,-500.0,0.00033198,7]
[398907051,1765985443906,-500.0,0.00033198,7]
[398907053,1765985443915,-500.0,0.00033198,7]
[398907055,1765985443924,-500.0,0.00033198,7]
[398907056,1765985443933,-500.0,0.00033198,7]
[398907058,1765985443942,-500.0,0.00033198,7]
[398907059,1765985443951,-233.38056872,0.00033198,7]
[398907060,1765985443961,-488.20495008,0.00033198,7]
[398907062,1765985443970,-500.0,0.00033198,7]
[398907063,1765985443979,-500.0,0.00033198,7]
[398907064,1765985443988,-500.0,0.00033198,7]
[398907065,1765985443997,-500.0,0.00033198,7]
[398907066,1765985444007,-500.0,0.00033198,7]
[398907067,1765985444015,-176.63730693,0.00033198,7]
[398907068,1765985444053,-154.00247569,0.00033198,7]
[398907185,1765985446980,-169.36021738,0.00033198,7]
[398907188,1765985446989,-500.0,0.00033198,7]
[398907191,1765985446999,-500.0,0.00033198,7]
[398907194,1765985447009,-500.0,0.00033198,7]
[398907197,1765985447021,-500.0,0.00033198,7]
[398907200,1765985447034,-500.0,0.00033198,7]
[398907203,1765985447043,-500.0,0.00033198,7]
[398907205,1765985447053,-271.6079911,0.00033198,7]
[398907208,1765985447062,-2000.0,0.00033199,15]
[398907211,1765985447071,-2000.0,0.00035289,15]
[398907214,1765985447079,-412.53179152,0.00035439,15]
[398907216,1765985447090,-1587.46820848,0.00035439,15]
[398907219,1765985447099,-2000.0,0.00035899,15]
[398907221,1765985447108,-200.0,0.0003614,43]
[398907223,1765985447117,-2000.0,0.0003689,9]
[398907225,1765985447126,-3282.70312953,0.00037397,2]
[398907226,1765985447135,-997.66765653,0.00037838,2]
[398907227,1765985447145,-2000.0,0.00037849,15]
[398907229,1765985447156,-181.75124044,0.00037932,15]
[398907230,1765985447165,-216.17891577,0.00037932,7]
[398907231,1765985447174,-49914.0,0.00037938,120]
[398907232,1765985447183,-500.0,0.00037938,120]
[398907233,1765985447193,-1000.0,0.00037938,30]
[398907234,1765985447202,-1000.0,0.00038,7]
[398907235,1765985447211,-325.0,0.000386,50]
[398907236,1765985447223,-151.0,0.00038815,30]
[398907237,1765985447232,-997.66765651,0.00039554,2]
[398907240,1765985447241,-655.730237,0.00039654,2]
[398907242,1765985447251,-883.98,0.00039979,10]
[398907244,1765985447259,-823.4,0.00039989,10]
[398907246,1765985447268,-2000.0,0.00039999,15]
[398907248,1765985447277,-2000.0,0.00039999,10]
[398907249,1765985447286,-2000.0,0.00039999,15]
[398907251,1765985447295,-200.0,0.0004,120]
[398907253,1765985447304,-1000.0,0.0004,60]
[398907255,1765985447313,-2000.0,0.00040259,15]
[398907257,1765985447322,-174.70242412,0.00040837,7]
[398907259,1765985447333,-503.0,0.00040938,120]
[398907261,1765985447349,-2000.0,0.00040955,15]
[398907263,1765985447369,-2000.0,0.00041094,15]
[398907265,1765985447391,-302.55376915,0.00041095,120]
[398907266,1765985447414,-176.145,0.00041095,60]
[398907267,1765985447436,-560.441571,0.00041095,120]
[398907268,1765985447459,-314.60686781,0.00041095,30]
[398907269,1765985447488,-500.0,0.00041095,120]
[398907270,1765985447518,-500.0,0.00041095,120]
[398907271,1765985447543,-11074.86,0.00041095,3]
[398907272,1765985447566,-500.0,0.00041095,120]
[398907273,1765985447588,-500.0,0.00041095,120]
[398907274,1765985447610,-622.26222952,0.00041095,120]
[398907275,1765985447632,-500.0,0.00041095,120]
[398907276,1765985447649,-500.0,0.00041095,120]
[398907277,1765985447659,-500.0,0.00041095,120]
[398907278,1765985447668,-500.0,0.00041095,120]
[398907279,1765985447678,-500.0,0.00041095,120]
[398907280,1765985447687,-500.0,0.00041095,120]
[398907281,1765985447697,-330.89232238,0.00041095,120]
[398907282,1765985447708,-252.5857258,0.00041095,120]
[398907283,1765985447717,-500.0,0.00041095,120]
[398907284,1765985447727,-329.52756336,0.00041095,120]
[398907285,1765985447736,-500.0,0.00041095,120]
[398907286,1765985447745,-294.20674236,0.00041095,120]
[398907287,1765985447754,-359.02811514,0.00041095,120]
[398907288,1765985447763,-14964.08,0.00041095,120]
[398907289,1765985447772,-323.01803992,0.00041095,120]
[398907290,1765985447781,-618.63217788,0.00041095,120]
[398907291,1765985447790,-500.0,0.00041095,120]
[398907292,1765985447799,-269.68649725,0.00041095,120]
[398907293,1765985447808,-163.57685113,0.00041095,120]
[398907294,1765985447817,-296.18360693,0.00041095,120]
[398907295,1765985447826,-500.0,0.00041095,120]
[398907296,1765985447836,-1145.96,0.00041095,120]
[398907297,1765985447845,-500.0,0.00041095,120]
[398907298,1765985447854,-500.0,0.00041095,120]
[398907299,1765985447864,-367.53095484,0.00041095,60]
[398907300,1765985447873,-500.0,0.00041095,120]
[398907301,1765985447882,-500.0,0.00041095,120]
[398907302,1765985447892,-276.85445581,0.00041095,120]
[398907303,1765985447902,-468.22521929,0.00041095,120]
[398907304,1765985447911,-231.32857413,0.00041095,120]
[398907305,1765985447920,-500.0,0.00041095,120]
[398907306,1765985447929,-500.0,0.00041095,120]
[398907307,1765985447938,-14375.36198021,0.00041095,60]
[398907308,1765985447947,-176.29719726,0.00041095,120]
[398907309,1765985447956,-626.522798,0.00041095,120]
[398907310,1765985447965,-500.0,0.00041095,120]
[398907311,1765985447974,-500.0,0.00041095,120]
[398907312,1765985447983,-349.78773319,0.00041095,120]
[398907313,1765985447992,-500.0,0.00041095,120]
[398907314,1765985448002,-339.17799378,0.00041095,120]
[398907315,1765985448011,-605.35820082,0.00041095,120]
[398907316,1765985448020,-230.82340179,0.00041095,120]
[398907317,1765985448030,-401.09661244,0.00041095,120]
[398907318,1765985448040,-394.24942576,0.00041095,120]
[398907319,1765985448049,-313.7925714,0.00041095,120]
[398907320,1765985448058,-357.30224628,0.00041095,120]
[398907321,1765985448067,-500.0,0.00041095,30]
[398907322,1765985448077,-528.56047731,0.00041095,120]
[398907323,1765985448087,-369.72283803,0.00041095,120]
[398907324,1765985448096,-500.0,0.00041095,120]
[398907325,1765985448105,-500.0,0.00041095,120]
[398907326,1765985448115,-451.21159903,0.00041095,120]
[398907327,1765985448124,-500.0,0.00041095,120]
[398907328,1765985448134,-594.7549478,0.00041095,120]
[398907329,1765985448146,-500.0,0.00041095,120]
[398907330,1765985448155,-500.0,0.00041095,120]
[398907331,1765985448164,-500.0,0.00041095,120]
[398907332,1765985448173,-3282.70312953,0.00041255,28]
[398907333,1765985448183,-997.66765651,0.00041269,2]
[398907334,1765985448192,-20969.522228,0.00041359,3]
[398907335,1765985448202,-500.0,0.00041369,120]
[398907336,1765985448212,-323.15193005,0.00041369,120]
[398907337,1765985448222,-1982.16107103,0.00041369,3]
[398907338,1765985448274,-1587.05,0.00041369,3]
[398907339,1765985448289,-7505.64892897,0.00041369,3]
[398907340,1765985448298,-203.3072834,0.00041369,120]
[398907341,1765985448307,-500.0,0.00041369,120]
[398907342,1765985448317,-332.58360265,0.00041369,120]
[398907343,1765985448326,-306.44277943,0.00041369,120]
[398907344,1765985448336,-603.29775486,0.00041369,120]
[398907345,1765985448346,-211.158671,0.00041369,120]
[398907346,1765985448356,-240.57703548,0.00041369,120]
[398907347,1765985448366,-293.72209173,0.00041369,120]
[398907348,1765985448375,-344.09602253,0.00041369,120]
[398907349,1765985448384,-186.30255745,0.00041369,120]
[398907350,1765985448393,-11332.45113188,0.00041369,120]
[398907351,1765985453015,150.0,8.867e-05,2]
[398907352,1765985453451,150.0,9.673e-05,2]
[398907353,1765985518735,150.0,8.335e-05,2]
[398907426,1765985845493,150.0,9.672e-05,2]
[398907427,1765985851603,182.43,0.0001,2]
[398907428,1765986012455,-182.43,0.000102,2]
[398907429,1765986012478,-254.33444759,0.000102,2]
[398907430,1765986016679,-224.17334345,0.000102,2]
[398907431,1765986152102,182.8,0.0001,2]
[398907433,1765986495115,288.58,8.311e-05,2]
[398907434,1765986495580,577.16,9.067e-05,2]
[398907435,1765986496120,865.75,9.822e-05,2]
[398907436,1765986582402,-288.77610481,0.00010115,2]
[398907437,1765986585706,-79.09389519,0.00010115,2]
[398907438,1765986585729,-84.49220896,0.000102,2]
[398907439,1765986585751,-5.28606395,0.00010389,2]
[398907440,1765986627317,-144.71393605,0.00010389,2]
[398907441,1765986627340,-30.4176253,0.00010389,2]
[398907464,1765986632058,-373.11910904,0.00010389,2]
[398907465,1765986632070,-162.46326566,0.00010389,2]
[398907466,1765986632080,-735.75,0.00011035,2]
[398907467,1765986632089,-1103.62,0.00011955,2]
[398907468,1765986632099,-12437.8332008,0.00012068,2]
[398907469,1765986632108,-177.0,0.00012389,2]
[398907470,1765986632117,-171.08004343,0.00012498,2]
[398907471,1765986632127,-1471.5,0.00012874,2]
[398907472,1765986632137,-1200.0,0.0001327,2]
[398907473,1765986632148,-1200.0,0.00013271,2]
[398907474,1765986632158,-300.0,0.00013271,2]
[398907476,1765986632167,-300.0,0.00013271,2]
[398907478,1765986632177,-300.0,0.00013271,2]
[398907480,1765986632186,-300.0,0.00013271,2]
[398907483,1765986632196,-300.0,0.00013272,2]
[398907485,1765986632206,-784.72899677,0.00013272,2]
[398907486,1765986632215,-318.75373524,0.00013273,2]
[398907488,1765986632224,-500.0,0.00013273,2]
[398907490,1765986632234,-505.34890486,0.00013273,2]
[398907492,1765986632243,-500.0,0.00013273,2]
[398907493,1765986632252,-499.99,0.00013273,2]
[398907494,1765986632261,-500.0,0.00013273,2]
[398907495,1765986632270,-501.58527591,0.00013273,2]
[398907496,1765986632279,-502.58794908,0.00013273,2]
[398907497,1765986632288,-500.0,0.00013273,2]
[398907498,1765986632298,-500.0,0.00013273,2]
[398907499,1765986632307,-500.0,0.00013273,2]
[398907500,1765986632317,-301.15789391,0.00013598,2]
[398907509,1765986638652,-516.47320785,0.00013271,2]
[398907510,1765986638662,-185.5169377,0.00013271,2]
[398907547,1765986639084,-314.4830623,0.00013271,2]
[398907549,1765986639094,-81.70896261,0.00013271,2]
[398907552,1765986639105,-281.04,0.00013271,2]
[398907554,1765986639116,-137.25103739,0.00013271,2]